Workbook

Sheet ORÇAMENTO
A1: <---- NUMERAR SERVIÇOS PARA CPU | C1: Ministério da Integração Nacional
C2: Companhia de Desenvolvimento dos Vales do São Francisco e do Parnaíba
C3: 1ª Superintendência Regional
B5: OBRA: | C5: CONSTRUÇÃO DE PONTE SOBRE O RIO BARREIRO - SÃO JOÃO DO PACUÍ (COMUNIDADE BARREIRO)
B6: LOCAL: | C6: SÃO JOÃO DO PACUÍ - MG
B7: DATA: | C7: OUTUBRO/2022 | G7: BDI Serviços: | I7: ='BDI SERV'!D31/100 -> 0.2069
B8: PRAZO DE EXECUÇÃO: 120 DIAS
B9: ITEM | C9: DISCRIMINAÇÃO | D9: REFER. | E9: UNID. | F9: QUANT. | G9: P. UNITÁRIO | H9: P.UNIT.C/ BDI | I9: P. TOTAL | J9: =I55 -> 413134.13
A10: A | B10: 1 | C10: SERVIÇOS PRELIMINARES | I10: =SUM(I11:I16) -> 52126.68 | J10: =I10/I55 -> 0.1261737441
A11: 0 | B11: 1.1 | C11: MOBILIZAÇÃO E DESMOBILIZAÇÃO | D11: CPU.1 | E11: GL | F11: 1 | G11: =VLOOKUP(A11,CPU!$A$1:$N$3254,9) -> 6819.64 | H11: =VLOOKUP(A11,CPU!$A$1:$N$3254,10) -> 8230.623516 | I11: =ROUND(F11*H11,2) -> 8230.62
A12: 1 | B12: 1.2 | C12: ADMINISTRAÇÃO LOCAL E MANUTENÇÃO DO CANTEIRO DE OBRAS | D12: CPU.2 | E12: GL | F12: 1 | G12: =VLOOKUP(A12,CPU!$A$1:$N$3254,9) -> 27201.2 | H12: =VLOOKUP(A12,CPU!$A$1:$N$3254,10) -> 32829.12828 | I12: =ROUND(F12*H12,2) -> 32829.13 | J12: =I12/I55 -> 0.07946361149
A13: 2 | B13: 1.3 | C13: LIMPEZA MECANIZADA DE CAMADA VEGETAL, VEGETAÇÃO E PEQUENAS ÁRVORES (DIÂMETRO DE TRONCO MENOR QUE 0,20 M) | D13: 98525 | E13: M2 | F13: 300 | G13: =VLOOKUP(A13,CPU!$A$1:$N$3254,9) -> 0.39 | H13: =VLOOKUP(A13,CPU!$A$1:$N$3254,10) -> 0.470691 | I13: =ROUND(F13*H13,2) -> 141.21
A14: 3 | B14: 1.4 | C14: INSTALAÇÕES E CANTEIRO DE OBRAS | D14: CPU.3 | E14: GL | F14: 1 | G14: =VLOOKUP(A14,CPU!$A$1:$N$3254,9) -> 4708.56 | H14: =VLOOKUP(A14,CPU!$A$1:$N$3254,10) -> 5682.761064 | I14: =ROUND(F14*H14,2) -> 5682.76 | J14: OK
A15: 4 | B15: 1.5 | C15: PLACA DE OBRA EM CHAPA DE AÇO GALVANIZADO | D15: 74209/001 | E15: M2 | F15: 4 | G15: =VLOOKUP(A15,CPU!$A$1:$N$3254,9) -> 592.84 | H15: =VLOOKUP(A15,CPU!$A$1:$N$3254,10) -> 715.498596 | I15: =ROUND(F15*H15,2) -> 2861.99 | J15: OK
A16: 5 | B16: 1.6 | C16: LOCACAO CONVENCIONAL DE OBRA, UTILIZANDO GABARITO DE TÁBUAS CORRIDAS PONTALETADAS A CADA 2,00M | D16: 99059 | E16: M | F16: 30 | G16: =VLOOKUP(A16,CPU!$A$1:$N$3254,9) -> 65.76 | H16: =VLOOKUP(A16,CPU!$A$1:$N$3254,10) -> 79.365744 | I16: =ROUND(F16*H16,2) -> 2380.97 | J16: OK
A17: B | B17: 2 | C17: INFRAESTRUTURA E MESOESTRUTURA | I17: =SUM(I18:I30) -> 222770.66 | J17: =I17/I55 -> 0.5392211483
A18: 6 | B18: 2.1 | C18: ESCAVAÇÃO MECANIZADA DE VALA EM MATERIAL DE 1A CATEGORIA | D18: 102299 | E18: M3 | F18: 96 | G18: =VLOOKUP(A18,CPU!$A$1:$N$3254,9) -> 14.97 | H18: =VLOOKUP(A18,CPU!$A$1:$N$3254,10) -> 18.067293 | I18: =ROUND(F18*H18,2) -> 1734.46 | J18: OK
A19: 7 | B19: 2.2 | C19: ESCAVAÇÃO MECANIZADA DE VALA EM MATERIAL DE 2A CATEGORIA | D19: 102306 | E19: M3 | F19: 40 | G19: =VLOOKUP(A19,CPU!$A$1:$N$3254,9) -> 16.18 | H19: =VLOOKUP(A19,CPU!$A$1:$N$3254,10) -> 19.527642 | I19: =ROUND(F19*H19,2) -> 781.11 | J19: OK | L19: 52,40 + 21,30
A20: 8 | B20: 2.3 | C20: DESMONTE DE MATERIAL DE 3ª CATEGORIA (BLOCOS DE ROCHAS OU MATACOS), COM MARTELETE PNEUMÁTICO MANUAL EXCLUSIVE CARGA E TRANSPORTE | D20: 102354 | E20: M3 | F20: 20 | G20: =VLOOKUP(A20,CPU!$A$1:$N$3254,9) -> 160.43 | H20: =VLOOKUP(A20,CPU!$A$1:$N$3254,10) -> 193.622967 | I20: =ROUND(F20*H20,2) -> 3872.46 | J20: OK
A21: 9 | B21: 2.4 | C21: CARGA, MANOBRA E DESCARGA DE SOLOS E MATERIAIS GRANULARES EM CAMINHÃO BASCULANTE | D21: 100974 | E21: M3 | F21: 156 | G21: =VLOOKUP(A21,CPU!$A$1:$N$3254,9) -> 8.59 | H21: =VLOOKUP(A21,CPU!$A$1:$N$3254,10) -> 10.367271 | I21: =ROUND(F21*H21,2) -> 1617.29 | J21: OK
A22: 10 | B22: 2.5 | C22: LASTRO DE CONCRETO MAGRO, APLICADO EM BLOCOS DE COROAMENTO OU SAPATAS, ESPESSURA DE 5 CM. | D22: 96619 | E22: M2 | F22: 40 | G22: =VLOOKUP(A22,CPU!$A$1:$N$3254,9) -> 31.05 | H22: =VLOOKUP(A22,CPU!$A$1:$N$3254,10) -> 37.474245 | I22: 1498.97 | J22: OK
A23: 11 | B23: 2.6 | C23: ARMAÇÃO DE BLOCO, PILAR, VIGA OU SAPATA UTILIZANDO AÇO CA-50 DE 8 MM | D23: 96545 | E23: KG | F23: 570 | G23: =VLOOKUP(A23,CPU!$A$1:$N$3254,9) -> 17.02 | H23: =VLOOKUP(A23,CPU!$A$1:$N$3254,10) -> 20.541438 | I23: =ROUND(F23*H23,2) -> 11708.62 | J23: OK
A24: 12 | B24: 2.7 | C24: ARMAÇÃO DE BLOCO, PILAR, VIGA OU SAPATA UTILIZANDO AÇO CA-50 DE 12,5 MM | D24: 96547 | E24: KG | F24: 2230 | G24: =VLOOKUP(A24,CPU!$A$1:$N$3254,9) -> 12.88 | H24: =VLOOKUP(A24,CPU!$A$1:$N$3254,10) -> 15.544872 | I24: =ROUND(F24*H24,2) -> 34665.06
A25: 13 | B25: 2.8 | C25: TRANSPORTE COM CAMINHÃO CARROCERIA 9T, EM VIA URBANA PAVIMENTADA (MAT. DIVERSOS - AÇO, MADEIRA, CIMENTO) | D25: 100947 | E25: TXKM | F25: 600.0039883 | G25: =VLOOKUP(A25,CPU!$A$1:$N$3254,9) -> 2.17 | H25: =VLOOKUP(A25,CPU!$A$1:$N$3254,10) -> 2.618973 | I25: 1571.39 | J25: Não considerou
A26: 14 | B26: 2.9 | C26: TRANSPORTE COM CAMINHÃO CARROCERIA 9T, EM VIA URBANA EM LEITO NATURAL (MAT. DIVERSOS - AÇO, MADEIRA, CIMENTO) | D26: 100945 | E26: TXKM | F26: 1650.002328 | G26: =VLOOKUP(A26,CPU!$A$1:$N$3254,9) -> 2.73 | H26: =VLOOKUP(A26,CPU!$A$1:$N$3254,10) -> 3.294837 | I26: =ROUND(F26*H26,2) -> 5436.49 | J26: Não considerou
A27: 15 | B27: 2.10 | C27: TRANSPORTE COM CAMINHÃO BASCULANTE, EM VIA URBANA PAVIMENTADA (MAT. DIVERSOS - AREIA, BRITA, SOLO, ENTULHO) | D27: 95427 | E27: M3XKM | F27: 1599.99695 | G27: =VLOOKUP(A27,CPU!$A$1:$N$3254,9) -> 0.75 | H27: =VLOOKUP(A27,CPU!$A$1:$N$3254,10) -> 0.905175 | I27: 1448.28 | J27: Não considerou
A28: 16 | B28: 2.11 | C28: TRANSPORTE COM CAMINHÃO BASCULANTE, EM VIA URBANA EM LEITO NATURAL (MAT. DIVERSOS - AREIA, BRITA, SOLO, ENTULHO) | D28: 95425 | E28: M3XKM | F28: 4350.001243 | G28: =VLOOKUP(A28,CPU!$A$1:$N$3254,9) -> 2.31 | H28: =VLOOKUP(A28,CPU!$A$1:$N$3254,10) -> 2.787939 | I28: 12127.54 | J28: Não considerou
A29: 17 | B29: 2.12 | C29: FABRICAÇÃO, MONTAGEM E DESMONTAGEM DE FÔRMA PARA ESTRUTURAS EM CHAPA DE MADEIRA COMPENSADA RESINADA, E=17 MM, 2 UTILIZAÇÕES | D29: 96539 | E29: M2 | F29: 320.004 | G29: =VLOOKUP(A29,CPU!$A$1:$N$3254,9) -> 120.68 | H29: =VLOOKUP(A29,CPU!$A$1:$N$3254,10) -> 145.648692 | I29: 46608.16 | J29: OK
A30: 18 | B30: 2.13 | C30: CONCRETAGEM DE BLOCOS DE COROAMENTO E VIGAS BALDRAME, FCK 30 MPA, COM USO DE JERICA LANÇAMENTO, ADENSAMENTO E ACABAMENTO | D30: 96555 | E30: M3 | F30: 119.998 | G30: =VLOOKUP(A30,CPU!$A$1:$N$3254,9) -> 688.42 | H30: =VLOOKUP(A30,CPU!$A$1:$N$3254,10) -> 830.854098 | I30: 99700.83 | J30: OK | K30: magro?
A31: D | B31: 3 | C31: SUPERESTRUTURA E LAJES DE APROXIMAÇÃO | I31: =SUM(I32:I47) -> 117514.85 | J31: =I31/I55 -> 0.2844472085
A32: 19 | B32: 3.1 | C32: ARMAÇÃO DE PILAR OU VIGA DE UMA ESTRUTURA CONVENCIONAL DE CONCRETO ARMADO UTILIZANDO AÇO CA-50 DE 6,3 MM | D32: 92776 | E32: KG | F32: 250 | G32: =VLOOKUP(A32,CPU!$A$1:$N$3254,9) -> 18.19 | H32: =VLOOKUP(A32,CPU!$A$1:$N$3254,10) -> 21.953511 | I32: =ROUND(F32*H32,2) -> 5488.38 | J32: OK | K32: 92776
A33: 20 | B33: 3.2 | C33: ARMAÇÃO DE PILAR OU VIGA DE UMA ESTRUTURA CONVENCIONAL DE CONCRETO ARMADO UTILIZANDO AÇO CA-50 DE 8 MM | D33: 92777 | E33: KG | F33: 480.003 | G33: =VLOOKUP(A33,CPU!$A$1:$N$3254,9) -> 17.02 | H33: =VLOOKUP(A33,CPU!$A$1:$N$3254,10) -> 20.541438 | I33: 9859.95 | K33: 92777
A34: 21 | B34: 3.3 | C34: ARMAÇÃO DE PILAR OU VIGA DE UMA ESTRUTURA CONVENCIONAL DE CONCRETO ARMADO UTILIZANDO AÇO CA-50 DE 10 MM | D34: 92778 | E34: KG | F34: 619.995 | G34: =VLOOKUP(A34,CPU!$A$1:$N$3254,9) -> 15.16 | H34: =VLOOKUP(A34,CPU!$A$1:$N$3254,10) -> 18.296604 | I34: 11343.8 | K34: 92778
A35: 22 | B35: 3.4 | C35: ARMAÇÃO DE PILAR OU VIGA DE UMA ESTRUTURA CONVENCIONAL DE CONCRETO ARMADO UTILIZANDO AÇO CA-50 DE 12,5 MM | D35: 92779 | E35: KG | F35: 260 | G35: =VLOOKUP(A35,CPU!$A$1:$N$3254,9) -> 12.74 | H35: =VLOOKUP(A35,CPU!$A$1:$N$3254,10) -> 15.375906 | I35: 3997.74 | K35: 92779
A36: 23 | B36: 3.5 | C36: ARMAÇÃO DE PILAR OU VIGA DE UMA ESTRUTURA CONVENCIONAL DE CONCRETO ARMADO UTILIZANDO AÇO CA-50 DE 20 MM | D36: 92781 | E36: KG | F36: 1160 | G36: =VLOOKUP(A36,CPU!$A$1:$N$3254,9) -> 13.35 | H36: =VLOOKUP(A36,CPU!$A$1:$N$3254,10) -> 16.112115 | I36: 18690.05 | K36: 92781
A37: 24 | B37: 3.6 | C37: FABRICAÇÃO DE FÔRMA PARA PILARES E VIGAS, EM CHAPA DE MADEIRA COMPENSADA RESINADA, E = 17 MM | D37: 92263 | E37: M2 | F37: 100 | G37: =VLOOKUP(A37,CPU!$A$1:$N$3254,9) -> 163.07 | H37: =VLOOKUP(A37,CPU!$A$1:$N$3254,10) -> 196.809183 | I37: =ROUND(F37*H37,2) -> 19680.92 | J37: OK | K37: 92263
A38: 25 | B38: 3.7 | C38: MONTAGEM E DESMONTAGEM DE FÔRMA DE PILARES RETANGULARES E VIGAS, EM CHAPA DE MADEIRA COMPENSADA PLASTIFICADA | D38: 92431 | E38: M2 | F38: 100 | G38: =VLOOKUP(A38,CPU!$A$1:$N$3254,9) -> 55.84 | H38: =VLOOKUP(A38,CPU!$A$1:$N$3254,10) -> 67.393296 | I38: 6739.33 | J38: OK | K38: 92431
A39: 26 | B39: 3.8 | C39: FABRICAÇÃO DE FÔRMA PARA LAJES, EM CHAPA DE MADEIRA COMPENSADA RESINADA, E = 17 MM | D39: 92267 | E39: M2 | F39: 30 | G39: =VLOOKUP(A39,CPU!$A$1:$N$3254,9) -> 54.96 | H39: =VLOOKUP(A39,CPU!$A$1:$N$3254,10) -> 66.331224 | I39: =ROUND(F39*H39,2) -> 1989.94 | J39: OK | K39: 92267
A40: 27 | B40: 3.9 | C40: MONTAGEM E DESMONTAGEM DE FÔRMA DE LAJE MACIÇA, PÉ-DIREITO DUPLO, EM CHAPA DE MADEIRA COMPENSADA RESINADA, 2 UTILIZAÇÕES | D40: 92508 | E40: M2 | F40: 30 | G40: =VLOOKUP(A40,CPU!$A$1:$N$3254,9) -> 111.27 | H40: =VLOOKUP(A40,CPU!$A$1:$N$3254,10) -> 134.291763 | I40: 4028.75 | J40: OK | K40: 92508
A41: 28 | B41: 3.10 | C41: ESCORAMENTO DE FÔRMAS DE VIGAS E LAJES EM MADEIRA NÃO APARELHADA, INCLUSO TRAVAMENTO, 4 UTILIZAÇÕES | D41: 101792 | E41: M3 | F41: 210 | G41: =VLOOKUP(A41,CPU!$A$1:$N$3254,9) -> 17.96 | H41: =VLOOKUP(A41,CPU!$A$1:$N$3254,10) -> 21.675924 | I41: =ROUND(F41*H41,2) -> 4551.94 | J41: Não considerou | K41: 101792
A42: 29 | B42: 3.11 | C42: CONCRETAGEM DE ESTRUTURAS (PAREDES E LAJES) COM CONCRETO USINADO BOMBEÁVEL FCK 30 MPA - LANÇAMENTO, ADENSAMENTO E ACABAMENTO | D42: 90861.a | E42: M3 | F42: 32.0001 | G42: =VLOOKUP(A42,CPU!$A$1:$N$3254,9) -> 586.74 | H42: =VLOOKUP(A42,CPU!$A$1:$N$3254,10) -> 708.136506 | I42: =ROUND(F42*H42,2) -> 22660.44 | J42: OK | K42: 90861.a
A43: 30 | B43: 3.12 | C43: APARELHO DE APOIO EM NEOPRENE FRETADO, COM FRETAGEM DE AÇO 4MM INTERCALADAS COM ELASTÔMERO DE 11MM E REVESTIMENTO FINAL COM ELASTÔMERO DE 6MM | D43: CPU.4 | E43: DM3 | F43: 18.75 | G43: =VLOOKUP(A43,CPU!$A$1:$N$3254,9) -> 108.7 | H43: =VLOOKUP(A43,CPU!$A$1:$N$3254,10) -> 131.19003 | I43: =ROUND(F43*H43,2) -> 2459.81 | J43: OK | K43: CPU.5
A44: 13 | B44: 3.13 | C44: TRANSPORTE COM CAMINHÃO CARROCERIA 9T, EM VIA URBANA PAVIMENTADA (MAT. DIVERSOS - AÇO, MADEIRA, CIMENTO) | D44: 100947 | E44: TXKM | F44: 350.4473856 | G44: =VLOOKUP(A44,CPU!$A$1:$N$3254,9) -> 2.17 | H44: =VLOOKUP(A44,CPU!$A$1:$N$3254,10) -> 2.618973 | I44: 917.81 | J44: Não considerou | K44: 100947
A45: 14 | B45: 3.14 | C45: TRANSPORTE COM CAMINHÃO CARROCERIA 9T, EM VIA URBANA EM LEITO NATURAL (MAT. DIVERSOS - AÇO, MADEIRA, CIMENTO) | D45: 100945 | E45: TXKM | F45: 1001.228437 | G45: =VLOOKUP(A45,CPU!$A$1:$N$3254,9) -> 2.73 | H45: =VLOOKUP(A45,CPU!$A$1:$N$3254,10) -> 3.294837 | I45: 3298.88 | J45: Não considerou | K45: 100945
A46: 15 | B46: 3.15 | C46: TRANSPORTE COM CAMINHÃO BASCULANTE DE 10 M³, EM VIA URBANA PAVIMENTADA (MAT. DIVERSOS - AREIA, BRITA, SOLO, ENTULHO) | D46: 95427 | E46: M3XKM | F46: 210.0006525 | G46: =VLOOKUP(A46,CPU!$A$1:$N$3254,9) -> 0.75 | H46: =VLOOKUP(A46,CPU!$A$1:$N$3254,10) -> 0.905175 | I46: 190.09 | J46: Não considerou | K46: 93590
A47: 16 | B47: 3.16 | C47: TRANSPORTE COM CAMINHÃO BASCULANTE DE 10 M³, EM VIA URBANA EM LEITO NATURAL (MAT. DIVERSOS - AREIA, BRITA, SOLO, ENTULHO) | D47: 95425 | E47: M3XKM | F47: 580.0037878 | G47: =VLOOKUP(A47,CPU!$A$1:$N$3254,9) -> 2.31 | H47: =VLOOKUP(A47,CPU!$A$1:$N$3254,10) -> 2.787939 | I47: =ROUND(F47*H47,2) -> 1617.02 | J47: Não considerou | K47: 93588
A48: E | B48: 4 | C48: SERVIÇOS DIVERSOS - ENCABEÇAMENTO, GUARDA-CORPO E LIMPEZA FINAL | I48: =SUM(I49:I54) -> 20721.94 | J48: =I48/I55 -> 0.05015789908
A49: 31 | B49: 4.1 | C49: REATERRO MANUAL APILOADO COM SOQUETE | D49: 96995 | E49: M3 | F49: 160 | G49: =VLOOKUP(A49,CPU!$A$1:$N$3254,9) -> 43.22 | H49: =VLOOKUP(A49,CPU!$A$1:$N$3254,10) -> 52.162218 | I49: =ROUND(F49*H49,2) -> 8345.95 | J49: OK | K49: 98576
A50: 32 | B50: 4.2 | C50: TUBO, PVC, SOLDÁVEL, DN 50MM - FORNECIMENTO E INSTALAÇÃO | D50: 89449 | E50: M | F50: 4 | G50: =VLOOKUP(A50,CPU!$A$1:$N$3254,9) -> 23.03 | H50: =VLOOKUP(A50,CPU!$A$1:$N$3254,10) -> 27.794907 | I50: =ROUND(F50*H50,2) -> 111.18 | J50: OK | K50: 96402
A51: 33 | B51: 4.3 | C51: GUARDA-CORPO DE AÇO GALVANIZADO DE 1,10M DE ALTURA, MONTANTES TUBULARES DE 1.1/2 ESPAÇADOS DE 1,20M, TRAVESSA SUPERIOR DE 2, GRADIL FORMADO POR BARRAS CHATAS EM FERRO DE 32X4,8MM, FIXADO COM CHUMBADOR MECÂNICO | D51: 99839 | E51: M | F51: 20 | G51: =VLOOKUP(A51,CPU!$A$1:$N$3254,9) -> 502.25 | H51: =VLOOKUP(A51,CPU!$A$1:$N$3254,10) -> 606.165525 | I51: =ROUND(F51*H51,2) -> 12123.31 | J51: OK | K51: 95995
A52: 34 | B52: 4.4 | C52: CARGA, MANOBRA E DESCARGA DE SOLOS E MATERIAIS EM GERAL (ENTULHO) EM CAMINHÃO BASCULANTE | D52: 100990 | E52: M3 | F52: 6 | G52: =VLOOKUP(A52,CPU!$A$1:$N$3254,9) -> 5.74 | H52: =VLOOKUP(A52,CPU!$A$1:$N$3254,10) -> 6.927606 | I52: 41.57 | J52: OK | K52: 100984
A53: 15 | B53: 4.5 | C53: TRANSPORTE COM CAMINHÃO BASCULANTE DE 10 M³, EM VIA URBANA PAVIMENTADA (MAT. DIVERSOS - AREIA, BRITA, SOLO, ENTULHO) | D53: 95427 | E53: M3XKM | F53: 18 | G53: =VLOOKUP(A53,CPU!$A$1:$N$3254,9) -> 0.75 | H53: =VLOOKUP(A53,CPU!$A$1:$N$3254,10) -> 0.905175 | I53: 16.29 | J53: Não considerou | K53: 93590
A54: 16 | B54: 4.6 | C54: TRANSPORTE COM CAMINHÃO BASCULANTE DE 10 M³, EM VIA URBANA EM LEITO NATURAL (MAT. DIVERSOS - AREIA, BRITA, SOLO, ENTULHO) | D54: 95425 | E54: M3XKM | F54: 30 | G54: =VLOOKUP(A54,CPU!$A$1:$N$3254,9) -> 2.31 | H54: =VLOOKUP(A54,CPU!$A$1:$N$3254,10) -> 2.787939 | I54: 83.64 | J54: Não considerou | K54: 93588
B55: TOTAL GERAL DA OBRA COM BDI | I55: =SUM(I10,I17,I31,I48) -> 413134.13

Sheet CPU
A1: 0 | B1: CODEVASF | E1: COMPOSIÇÃO DE PREÇO UNITÁRIO | I1: =H11 -> 6819.64 | J1: =H13 -> 8230.623516 | K1: BDI CALCULADO: | M1: =ORÇAMENTO!I7 -> 0.2069
B2: OBRA: | C2: =ORÇAMENTO!C5 -> CONSTRUÇÃO DE PONTE SOBRE O RIO BARREIRO - SÃO JOÃO DO PACUÍ (COMUNIDADE BARREIRO) | G2: DATA: | H2: =ORÇAMENTO!C7 -> OUTUBRO/2022
B3: SERVIÇO: | C3: =VLOOKUP(A1,ORÇAMENTO!A11:I50,3) -> MOBILIZAÇÃO E DESMOBILIZAÇÃO | E3: Referência: | F3: =VLOOKUP(A1,ORÇAMENTO!A11:I50,4) -> CPU.1 | G3: UNIDADE: | H3: =VLOOKUP(A1,ORÇAMENTO!A11:I50,5) -> GL | I3: OK
B5: TIPO ITEM | C5: CODIGO ITEM | D5: DESCRIÇÃO ITEM | E5: UNIDADE ITEM | F5: COEFICIENTE | G5: PRECO UNITARIO | H5: CUSTO TOTAL
B6: COMPOSICAO | C6: 73467 | D6: CAMINHÃO TOCO, PBT 14.300 KG, CARGA ÚTIL MÁX. 9.710 KG, DIST. ENTRE EIXOS 3,56 M, POTÊNCIA 185 CV, INCLUSIVE CARROCERIA FIXA ABERTA DE MADEIRA P/ TRANSPORTE GERAL DE CARGA SECA, DIMEN. APROX. 2,50 X 6,50 X 0,50M | E6: CHP DIURNO. | F6: 20 | G6: 252.95 | H6: =ROUNDDOWN(F6*G6,2) -> 5059
B7: COMPOSICAO | C7: 91395 | D7: CAMINHÃO TOCO, PBT 14.300 KG, CARGA ÚTIL MÁX. 9.710 KG, DIST. ENTRE EIXOS 3,56 M, POTÊNCIA 185 CV, INCLUSIVE CARROCERIA FIXA ABERTA DE MADEIRA P/ TRANSPORTE GERAL DE CARGA SECA, DIMEN. APROX. 2,50 X 6,50 X 0,50M | E7: CHI DIURNO. | F7: 20 | G7: 47.2 | H7: =ROUNDDOWN(F7*G7,2) -> 944
B8: COMPOSIÇÃO | C8: 88316 | D8: SERVENTE COM ENCARGOS COMPLEMENTARES | E8: H | F8: 32 | G8: 18.02 | H8: 576.64
B9: ESTIMATIVA | D9: PASSAGENS DE ÔNIBUS | E9: UNID | F9: 4 | G9: 60 | H9: 240
B10: PRODUÇÃO DA EQUIPE | E10: 1 | F10: CUSTO | H10: =SUM(H6:H9) -> 6819.64
B11: TOTAL | H11: =H10/E10 -> 6819.64
B12: BDI % | H12: =1+$M$1 -> 1.2069
B13: TOTAL DO SERVIÇO - R$ | H13: =H11*H12 -> 8230.623516
A15: =A1+1 -> 1 | B15: CODEVASF | E15: COMPOSIÇÃO DE PREÇO UNITÁRIO | I15: =H27 -> 27201.2 | J15: =H29 -> 32829.12828
B16: OBRA: | C16: =$C$2 -> CONSTRUÇÃO DE PONTE SOBRE O RIO BARREIRO - SÃO JOÃO DO PACUÍ (COMUNIDADE BARREIRO) | G16: DATA: | H16: =$H$2 -> OUTUBRO/2022
B17: SERVIÇO: | C17: =VLOOKUP(A15,ORÇAMENTO!$A$11:$I$50,3) -> ADMINISTRAÇÃO LOCAL E MANUTENÇÃO DO CANTEIRO DE OBRAS | E17: SINAPI | F17: CPU | G17: UNIDADE: | H17: =VLOOKUP(A15,ORÇAMENTO!$A$11:$I$50,5) -> GL | I17: OK
B19: TIPO ITEM | C19: CODIGO ITEM | D19: DESCRIÇÃO ITEM | E19: UNIDADE ITEM | F19: COEFICIENTE | G19: PRECO UNITARIO | H19: CUSTO TOTAL
B20: INSUMO | C20: 3346 | D20: LOCACAO DE GRUPO GERADOR *80 A 125* KVA, MOTOR DIESEL, REBOCAVEL | E20: H | F20: 60 | G20: 15.66 | H20: =ROUNDDOWN(F20*G20,2) -> 939.6
B21: COMPOSICAO | C21: 101008 | D21: CARGA DE ÁGUA EM CAMINHÃO PIPA | E21: M3 | F21: 9 | G21: 5.47 | H21: 49.23
B22: COMPOSICAO | C22: 100955 | D22: TRANSPORTE COM CAMINHÃO PIPA, EM VIA URBANA EM LEITO NATURAL | E22: M3XKM | F22: =F21*15 -> 135 | G22: 4.95 | H22: 668.25
B23: COTAÇÃO | C23: MERC. | D23: VAN PARA TRANSPORTE DO PESSOAL | E23: VB | F23: 1 | G23: 600 | H23: 600
B24: COMPOSICAO | C24: 90777 | D24: Engenheiro Civil | E24: H | F24: 22 | G24: 103.51 | H24: 2277.22
B25: COMPOSICAO | C25: 90776 | D25: Encarregado Geral | E25: H | F25: 55 | G25: 41.2 | H25: 2266
B26: PRODUÇÃO DA EQUIPE | E26: 0.25 | F26: CUSTO | H26: =SUM(H20:H25) -> 6800.3
B27: TOTAL | H27: =H26/E26 -> 27201.2
B28: BDI % | H28: =1+$M$1 -> 1.2069
B29: TOTAL DO SERVIÇO - R$ | H29: =H27*H28 -> 32829.12828
A31: 2 | B31: CODEVASF | E31: COMPOSIÇÃO DE PREÇO UNITÁRIO | I31: =H41 -> 0.39 | J31: =H43 -> 0.470691
B32: OBRA: | C32: =$C$2 -> CONSTRUÇÃO DE PONTE SOBRE O RIO BARREIRO - SÃO JOÃO DO PACUÍ (COMUNIDADE BARREIRO) | G32: DATA: | H32: =$H$2 -> OUTUBRO/2022
B33: SERVIÇO: | C33: =VLOOKUP(A31,ORÇAMENTO!$A$11:$I$50,3) -> LIMPEZA MECANIZADA DE CAMADA VEGETAL, VEGETAÇÃO E PEQUENAS ÁRVORES (DIÂMETRO DE TRONCO MENOR QUE 0,20 M) | E33: SINAPI | F33: =VLOOKUP(A31,ORÇAMENTO!$A$11:$I$50,4) -> 98525 | G33: UNIDADE: | H33: =VLOOKUP(A31,ORÇAMENTO!$A$11:$I$50,5) -> M2 | I33: OK
B35: TIPO ITEM | C35: CODIGO ITEM | D35: DESCRIÇÃO ITEM | E35: UNIDADE ITEM | F35: COEFICIENTE | G35: PRECO UNITARIO | H35: CUSTO TOTAL
B36: COMPOSICAO | C36: 88316 | D36: SERVENTE COM ENCARGOS COMPLEMENTARES | E36: H | F36: 0,0030000 | G36: 18,02 | H36: =ROUNDDOWN(F36*G36,2) -> 0.05
B37: COMPOSICAO | C37: 88441 | D37: JARDINEIRO COM ENCARGOS COMPLEMENTARES | E37: H | F37: 0,0030000 | G37: 22,22 | H37: 0.06
B38: COMPOSICAO | C38: 89031 | D38: TRATOR DE ESTEIRAS, POTÊNCIA 100 HP, PESO OPERACIONAL 9,4 T, COM LÂMINA 2,19 M3 - CHI DIURNO. AF_06/2014 | E38: CHI | F38: 0,0024000 | G38: 69,89 | H38: 0.16
B39: COMPOSICAO | C39: 89032 | D39: TRATOR DE ESTEIRAS, POTÊNCIA 100 HP, PESO OPERACIONAL 9,4 T, COM LÂMINA 2,19 M3 - CHP DIURNO. AF_06/2014 | E39: CHP | F39: 0,0006000 | G39: 202,18 | H39: 0.12
B40: PRODUÇÃO DA EQUIPE | E40: 1 | F40: CUSTO | H40: =SUM(H36:H39) -> 0.39
B41: TOTAL | H41: =H40/E40 -> 0.39
B42: BDI % | H42: =1+$M$1 -> 1.2069
B43: TOTAL DO SERVIÇO - R$ | H43: =H41*H42 -> 0.470691
A45: 3 | B45: CODEVASF | E45: COMPOSIÇÃO DE PREÇO UNITÁRIO | I45: =H56 -> 4708.56 | J45: =H58 -> 5682.761064
B46: OBRA: | C46: =$C$2 -> CONSTRUÇÃO DE PONTE SOBRE O RIO BARREIRO - SÃO JOÃO DO PACUÍ (COMUNIDADE BARREIRO) | G46: DATA: | H46: =$H$2 -> OUTUBRO/2022
B47: SERVIÇO: | C47: =VLOOKUP(A45,ORÇAMENTO!$A$11:$I$50,3) -> INSTALAÇÕES E CANTEIRO DE OBRAS | E47: SINAPI | F47: =VLOOKUP(A45,ORÇAMENTO!$A$11:$I$50,4) -> CPU.3 | G47: UNIDADE: | H47: =VLOOKUP(A45,ORÇAMENTO!$A$11:$I$50,5) -> GL | I47: OK
B49: TIPO ITEM | C49: CODIGO ITEM | D49: DESCRIÇÃO ITEM | E49: UNIDADE ITEM | F49: COEFICIENTE | G49: PRECO UNITARIO | H49: CUSTO TOTAL
B50: INSUMO | C50: 10775 | D50: LOCACAO DE CONTAINER 2,30 X 6,00M, ALT. 2,50 M, COM SANITARIO, PARA ESCRITORIO, COMPLETO, SEM DIVISORIAS INTERNAS | E50: MÊS | F50: 4 | G50: 919.5 | H50: =ROUNDDOWN(F50*G50,2) -> 3678
B51: INSUMO | C51: 37524 | D51: TELA PLASTICA LARANJA, TIPO TAPUME PARA SINALIZACAO, MALHA RETANGULAR | E51: M | F51: 40 | G51: 3 | H51: 120
B52: COMPOSICAO | C52: 100382 | D52: FABRICAÇÃO E INSTALAÇÃO DE PONTALETES DE MADEIRA NÃO APARELHADA PARA TELHADOS COM ATÉ 2 ÁGUAS E COM TELHA ONDULADA DE FIBROCIMENTO | E52: M2 | F52: 12 | G52: 34.29 | H52: 411.48
B53: COMPOSICAO | C53: 94207 | D53: TELHAMENTO COM TELHA ONDULADA DE FIBROCIMENTO E = 6 MM, COM RECOBRIMENTO LATERAL DE 1/4 DE ONDA | E53: M2 | F53: 12 | G53: 41.59 | H53: 499.08
H54: 0
B55: PRODUÇÃO DA EQUIPE | E55: 1 | F55: CUSTO | H55: =SUM(H50:H54) -> 4708.56
B56: TOTAL | H56: =H55/E55 -> 4708.56
B57: BDI % | H57: =1+$M$1 -> 1.2069
B58: TOTAL DO SERVIÇO - R$ | H58: =H56*H57 -> 5682.761064
A60: =A45+1 -> 4 | B60: CODEVASF | E60: COMPOSIÇÃO DE PREÇO UNITÁRIO | I60: =H73 -> 592.84 | J60: =H75 -> 715.498596
B61: OBRA: | C61: =$C$2 -> CONSTRUÇÃO DE PONTE SOBRE O RIO BARREIRO - SÃO JOÃO DO PACUÍ (COMUNIDADE BARREIRO) | G61: DATA: | H61: =$H$2 -> OUTUBRO/2022
B62: SERVIÇO: | C62: =VLOOKUP(A60,ORÇAMENTO!$A$11:$I$50,3) -> PLACA DE OBRA EM CHAPA DE AÇO GALVANIZADO | E62: SINAPI | F62: =VLOOKUP(A60,ORÇAMENTO!$A$11:$I$50,4) -> 74209/001 | G62: UNIDADE: | H62: =VLOOKUP(A60,ORÇAMENTO!$A$11:$I$50,5) -> M2 | I62: OK
B64: TIPO ITEM | C64: CODIGO ITEM | D64: DESCRIÇÃO ITEM | E64: UNIDADE ITEM | F64: COEFICIENTE | G64: PRECO UNITARIO | H64: CUSTO TOTAL
B65: INSUMO | C65: 4417 | D65: SARRAFO DE MADEIRA NAO APARELHADA *2,5 X 7* CM, MACARANDUBA, ANGELIM OU EQUIVALENTE DA REGIAO | E65: M | F65: 1,0000000 | G65: 11.94 | H65: =ROUNDDOWN(F65*G65,2) -> 11.94
B66: INSUMO | C66: 4491 | D66: PONTALETE DE MADEIRA NAO APARELHADA *7,5 X 7,5* CM (3 X 3 ") PINUS, MISTA OU EQUIVALENTE DA REGIAO | E66: M | F66: 4,0000000 | G66: 8.39 | H66: 33.56
B67: INSUMO | C67: 4813 | D67: PLACA DE OBRA (PARA CONSTRUCAO CIVIL) EM CHAPA GALVANIZADA *N. 22*, ADESIVADA, DE *2,0 X 1,125* M | E67: M2 | F67: 1,0000000 | G67: 480 | H67: 480
B68: INSUMO | C68: 5075 | D68: PREGO DE ACO POLIDO COM CABECA 18 X 30 (2 3/4 X 10) | E68: KG | F68: 0,1100000 | G68: 23.4 | H68: 2.57
B69: COMPOSICAO | C69: 88262 | D69: CARPINTEIRO DE FORMAS COM ENCARGOS COMPLEMENTARES | E69: H | F69: 1,0000000 | G69: 24.86 | H69: 24.86
B70: COMPOSICAO | C70: 88316 | D70: SERVENTE COM ENCARGOS COMPLEMENTARES | E70: H | F70: 2,0000000 | G70: 18.02 | H70: 36.04
B71: COMPOSICAO | C71: 94962 | D71: CONCRETO MAGRO PARA LASTRO, TRAÇO 1:4,5:4,5 (CIMENTO/ AREIA MÉDIA/ BRITA 1) - PREPARO MECÂNICO COM BETONEIRA 400 L | E71: M3 | F71: 0,0100000 | G71: 387.31 | H71: 3.87
B72: PRODUÇÃO DA EQUIPE | E72: 1 | F72: CUSTO | H72: =SUM(H65:H71) -> 592.84
B73: TOTAL | H73: =H72/E72 -> 592.84
B74: BDI % | H74: =1+$M$1 -> 1.2069
B75: TOTAL DO SERVIÇO - R$ | H75: =H73*H74 -> 715.498596
A77: =A60+1 -> 5 | B77: CODEVASF | E77: COMPOSIÇÃO DE PREÇO UNITÁRIO | I77: =H94 -> 65.76 | J77: =H96 -> 79.365744
B78: OBRA: | C78: =$C$2 -> CONSTRUÇÃO DE PONTE SOBRE O RIO BARREIRO - SÃO JOÃO DO PACUÍ (COMUNIDADE BARREIRO) | G78: DATA: | H78: =$H$2 -> OUTUBRO/2022
B79: SERVIÇO: | C79: =VLOOKUP(A77,ORÇAMENTO!$A$11:$I$50,3) -> LOCACAO CONVENCIONAL DE OBRA, UTILIZANDO GABARITO DE TÁBUAS CORRIDAS PONTALETADAS A CADA 2,00M | E79: SINAPI | F79: =VLOOKUP(A77,ORÇAMENTO!$A$11:$I$50,4) -> 99059 | G79: UNIDADE: | H79: =VLOOKUP(A77,ORÇAMENTO!$A$11:$I$50,5) -> M | I79: OK
B81: TIPO ITEM | C81: CODIGO ITEM | D81: DESCRIÇÃO ITEM | E81: UNIDADE ITEM | F81: COEFICIENTE | G81: PRECO UNITARIO | H81: CUSTO TOTAL
B82: INSUMO | C82: 4417 | D82: SARRAFO NAO APARELHADO *2,5 X 7* CM, EM MACARANDUBA, ANGELIM OU EQUIVALENTE DA REGIAO - BRUTA | E82: M | F82: 0,7445000 | G82: 11,94 | H82: =ROUNDDOWN(F82*G82,2) -> 8.88
B83: INSUMO | C83: 4433 | D83: CAIBRO NAO APARELHADO *7,5 X 7,5* CM, EM MACARANDUBA, ANGELIM OU EQUIVALENTE DA REGIAO - BRUTA | E83: M | F83: 0,4125000 | G83: 42,90 | H83: 17.69
B84: INSUMO | C84: 5068 | D84: PREGO DE ACO POLIDO COM CABECA 17 X 21 (2 X 11) | E84: KG | F84: 0,1110000 | G84: 23,40 | H84: 2.59
B85: INSUMO | C85: 7356 | D85: TINTA LATEX ACRILICA PREMIUM, COR BRANCO FOSCO | E85: L | F85: 0,0256000 | G85: 22,39 | H85: 0.57
B86: INSUMO | C86: 10567 | D86: TABUA *2,5 X 23* CM EM PINUS, MISTA OU EQUIVALENTE DA REGIAO - BRUTA | E86: M | F86: 0,5500000 | G86: 9,48 | H86: 5.21
B87: COMPOSICAO | C87: 88239 | D87: AJUDANTE DE CARPINTEIRO COM ENCARGOS COMPLEMENTARES | E87: H | F87: 0,3563000 | G87: 19,96 | H87: 7.11
B88: COMPOSICAO | C88: 88262 | D88: CARPINTEIRO DE FORMAS COM ENCARGOS COMPLEMENTARES | E88: H | F88: 0,7125000 | G88: 24,86 | H88: 17.71
B89: COMPOSICAO | C89: 91692 | D89: SERRA CIRCULAR DE BANCADA COM MOTOR ELÉTRICO POTÊNCIA DE 5HP, COM COIFA PARA DISCO 10" - CHP DIURNO. AF_08/2015 | E89: CHP | F89: 0,0039000 | G89: 28,39 | H89: 0.11
B90: COMPOSICAO | C90: 91693 | D90: SERRA CIRCULAR DE BANCADA COM MOTOR ELÉTRICO POTÊNCIA DE 5HP, COM COIFA PARA DISCO 10" - CHI DIURNO. AF_08/2015 | E90: CHI | F90: 0,0168000 | G90: 27,35 | H90: 0.45
B91: COMPOSICAO | C91: 94974 | D91: CONCRETO MAGRO PARA LASTRO, TRAÇO 1:4,5:4,5 (EM MASSA SECA DE CIMENTO/ AREIA MÉDIA/ BRITA 1) - PREPARO MANUAL. AF_05/2021 | E91: M3 | F91: 0,0046000 | G91: 432,11 | H91: 1.98
B92: COMPOSICAO | C92: 99062 | D92: MARCAÇÃO DE PONTOS EM GABARITO OU CAVALETE. AF_10/2018 | E92: UN | F92: 1,5000000 | G92: 2,31 | H92: 3.46
B93: PRODUÇÃO DA EQUIPE | E93: 1 | F93: CUSTO | H93: =SUM(H82:H92) -> 65.76
B94: TOTAL | H94: =H93/E93 -> 65.76
B95: BDI % | H95: =1+$M$1 -> 1.2069
B96: TOTAL DO SERVIÇO - R$ | H96: =H94*H95 -> 79.365744
A98: =A77+1 -> 6 | B98: CODEVASF | E98: COMPOSIÇÃO DE PREÇO UNITÁRIO | I98: =H107 -> 14.97 | J98: =H109 -> 18.067293
B99: OBRA: | C99: =$C$2 -> CONSTRUÇÃO DE PONTE SOBRE O RIO BARREIRO - SÃO JOÃO DO PACUÍ (COMUNIDADE BARREIRO) | G99: DATA: | H99: =$H$2 -> OUTUBRO/2022 | J99: =H110 -> 0
B100: SERVIÇO: | C100: =VLOOKUP(A98,ORÇAMENTO!$A$11:$I$50,3) -> ESCAVAÇÃO MECANIZADA DE VALA EM MATERIAL DE 1A CATEGORIA | E100: SINAPI | F100: =VLOOKUP(A98,ORÇAMENTO!$A$11:$I$50,4) -> 102299 | G100: UNIDADE: | H100: =VLOOKUP(A98,ORÇAMENTO!$A$11:$I$50,5) -> M3 | I100: OK
B102: TIPO ITEM | C102: CODIGO ITEM | D102: DESCRIÇÃO ITEM | E102: UNIDADE ITEM | F102: COEFICIENTE | G102: PRECO UNITARIO | H102: CUSTO TOTAL
B103: COMPOSICAO | C103: 5678 | D103: RETROESCAVADEIRA SOBRE RODAS COM CARREGADEIRA, TRAÇÃO 4X4, POTÊNCIA LÍQ. 88 HP, CAÇAMBA CARREG. CAP. MÍN. 1 M3, CAÇAMBA RETRO CAP. 0,26 M3, PESO OPERACIONAL MÍN. 6.674 KG, PROFUNDIDADE ESCAVAÇÃO MÁX. 4,37M | E103: CHP | F103: 0,0555000 | G103: 155,07 | H103: =ROUNDDOWN(F103*G103,2) -> 8.6
B104: COMPOSICAO | C104: 5679 | D104: RETROESCAVADEIRA SOBRE RODAS COM CARREGADEIRA, TRAÇÃO 4X4, POTÊNCIA LÍQ. 88 HP, CAÇAMBA CARREG. CAP. MÍN. 1 M3, CAÇAMBA RETRO CAP. 0,26 M3, PESO OPERACIONAL MÍN. 6.674 KG, PROFUNDIDADE ESCAVAÇÃO MÁX. 4,37M | E104: CHI | F104: 0,0670000 | G104: 62,29 | H104: 4.17
B105: COMPOSICAO | C105: 88316 | D105: SERVENTE COM ENCARGOS COMPLEMENTARES | E105: H | F105: 0,1225000 | G105: 18,02 | H105: 2.2
B106: PRODUÇÃO DA EQUIPE | E106: 1 | F106: CUSTO | H106: =SUM(H103:H105) -> 14.97
B107: TOTAL | H107: =H106/E106 -> 14.97
B108: BDI % | H108: =1+$M$1 -> 1.2069
B109: TOTAL DO SERVIÇO - R$ | H109: =H107*H108 -> 18.067293
A111: =A98+1 -> 7 | B111: CODEVASF | E111: COMPOSIÇÃO DE PREÇO UNITÁRIO | I111: =H120 -> 16.18 | J111: =H122 -> 19.527642
B112: OBRA: | C112: =$C$2 -> CONSTRUÇÃO DE PONTE SOBRE O RIO BARREIRO - SÃO JOÃO DO PACUÍ (COMUNIDADE BARREIRO) | G112: DATA: | H112: =$H$2 -> OUTUBRO/2022
B113: SERVIÇO: | C113: =VLOOKUP(A111,ORÇAMENTO!$A$11:$I$50,3) -> ESCAVAÇÃO MECANIZADA DE VALA EM MATERIAL DE 2A CATEGORIA | E113: SINAPI | F113: =VLOOKUP(A111,ORÇAMENTO!$A$11:$I$50,4) -> 102306 | G113: UNIDADE: | H113: =VLOOKUP(A111,ORÇAMENTO!$A$11:$I$50,5) -> M3 | I113: OK
B115: TIPO ITEM | C115: CODIGO ITEM | D115: DESCRIÇÃO ITEM | E115: UNIDADE ITEM | F115: COEFICIENTE | G115: PRECO UNITARIO | H115: CUSTO TOTAL
B116: COMPOSICAO | C116: 5631 | D116: ESCAVADEIRA HIDRÁULICA SOBRE ESTEIRAS, CAÇAMBA 0,80 M3, PESO OPERACIONAL 17 T, POTENCIA BRUTA 111 HP | E116: CHP | F116: 0,0453000 | G116: 224,30 | H116: =ROUNDDOWN(F116*G116,2) -> 10.16
B117: COMPOSICAO | C117: 5632 | D117: ESCAVADEIRA HIDRÁULICA SOBRE ESTEIRAS, CAÇAMBA 0,80 M3, PESO OPERACIONAL 17 T, POTENCIA BRUTA 111 HP | E117: CHI | F117: 0,0492000 | G117: 87,91 | H117: 4.32
B118: COMPOSICAO | C118: 88316 | D118: SERVENTE COM ENCARGOS COMPLEMENTARES | E118: H | F118: 0,0945000 | G118: 18,02 | H118: 1.7
B119: PRODUÇÃO DA EQUIPE | E119: 1 | F119: CUSTO | H119: =SUM(H116:H118) -> 16.18
B120: TOTAL | H120: =H119/E119 -> 16.18
B121: BDI % | H121: =1+$M$1 -> 1.2069
B122: TOTAL DO SERVIÇO - R$ | H122: =H120*H121 -> 19.527642
A124: 8 | B124: CODEVASF | E124: COMPOSIÇÃO DE PREÇO UNITÁRIO | I124: =H135 -> 160.43 | J124: =H137 -> 193.622967
B125: OBRA: | C125: =$C$2 -> CONSTRUÇÃO DE PONTE SOBRE O RIO BARREIRO - SÃO JOÃO DO PACUÍ (COMUNIDADE BARREIRO) | G125: DATA: | H125: =$H$2 -> OUTUBRO/2022
B126: SERVIÇO: | C126: =VLOOKUP(A124,ORÇAMENTO!$A$11:$I$50,3) -> DESMONTE DE MATERIAL DE 3ª CATEGORIA (BLOCOS DE ROCHAS OU MATACOS), COM MARTELETE PNEUMÁTICO MANUAL EXCLUSIVE CARGA E TRANSPORTE | E126: SINAPI | F126: =VLOOKUP(A124,ORÇAMENTO!$A$11:$I$50,4) -> 102354 | G126: UNIDADE: | H126: =VLOOKUP(A124,ORÇAMENTO!$A$11:$I$50,5) -> M3 | I126: OK
B128: TIPO ITEM | C128: CODIGO ITEM | D128: DESCRIÇÃO ITEM | E128: UNIDADE ITEM | F128: COEFICIENTE | G128: PRECO UNITARIO | H128: CUSTO TOTAL
B129: COMPOSICAO | C129: 5795 | D129: MARTELETE OU ROMPEDOR PNEUMÁTICO MANUAL, 28 KG, COM SILENCIADOR | E129: CHP | F129: 1,3422000 | G129: 26,95 | H129: =ROUNDDOWN(F129*G129,2) -> 36.17
B130: COMPOSICAO | C130: 5952 | D130: MARTELETE OU ROMPEDOR PNEUMÁTICO MANUAL, 28 KG, COM SILENCIADOR | E130: CHI | F130: 1,1698000 | G130: 24,98 | H130: 29.22
B131: COMPOSICAO | C131: 5953 | D131: COMPRESSOR DE AR REBOCÁVEL, VAZÃO 189 PCM, PRESSÃO EFETIVA DE TRABALHO 102 PSI, MOTOR DIESEL, POTÊNCIA 63 CV | E131: CHP | F131: 1,3422000 | G131: 65,95 | H131: 88.51
B132: COMPOSICAO | C132: 5954 | D132: COMPRESSOR DE AR REBOCÁVEL, VAZÃO 189 PCM, PRESSÃO EFETIVA DE TRABALHO 102 PSI, MOTOR DIESEL, POTÊNCIA 63 CV | E132: CHI | F132: 1,1698000 | G132: 5,59 | H132: 6.53
H133: 0
B134: PRODUÇÃO DA EQUIPE | E134: 1 | F134: CUSTO | H134: =SUM(H129:H133) -> 160.43
B135: TOTAL | H135: =H134/E134 -> 160.43
B136: BDI % | H136: =1+$M$1 -> 1.2069
B137: TOTAL DO SERVIÇO - R$ | H137: =H135*H136 -> 193.622967
A139: 9 | B139: CODEVASF | E139: COMPOSIÇÃO DE PREÇO UNITÁRIO | I139: =H150 -> 8.59 | J139: =H152 -> 10.367271
B140: OBRA: | C140: =$C$2 -> CONSTRUÇÃO DE PONTE SOBRE O RIO BARREIRO - SÃO JOÃO DO PACUÍ (COMUNIDADE BARREIRO) | G140: DATA: | H140: =$H$2 -> OUTUBRO/2022
B141: SERVIÇO: | C141: =VLOOKUP(A139,ORÇAMENTO!$A$11:$I$50,3) -> CARGA, MANOBRA E DESCARGA DE SOLOS E MATERIAIS GRANULARES EM CAMINHÃO BASCULANTE | E141: SINAPI | F141: =VLOOKUP(A139,ORÇAMENTO!$A$11:$I$50,4) -> 100974 | G141: UNIDADE: | H141: =VLOOKUP(A139,ORÇAMENTO!$A$11:$I$50,5) -> M3 | I141: OK
B143: TIPO ITEM | C143: CODIGO ITEM | D143: DESCRIÇÃO ITEM | E143: UNIDADE ITEM | F143: COEFICIENTE | G143: PRECO UNITARIO | H143: CUSTO TOTAL
B144: COMPOSICAO | C144: 5940 | D144: PÁ CARREGADEIRA SOBRE RODAS, POTÊNCIA LÍQUIDA 128 HP, CAPACIDADE DA CAÇAMBA 1,7 A 2,8 M3, PESO OPERACIONAL 11632 KG | E144: CHP | F144: 0,0083000 | G144: 213,75 | H144: =ROUNDDOWN(F144*G144,2) -> 1.77
B145: COMPOSICAO | C145: 5942 | D145: PÁ CARREGADEIRA SOBRE RODAS, POTÊNCIA LÍQUIDA 128 HP, CAPACIDADE DA CAÇAMBA 1,7 A 2,8 M3, PESO OPERACIONAL 11632 KG | E145: CHI | F145: 0,0105000 | G145: 81,69 | H145: 0.85
B146: COMPOSICAO | C146: 91386 | D146: CAMINHÃO BASCULANTE 10 M3, TRUCADO CABINE SIMPLES, PESO BRUTO TOTAL 23.000 KG, CARGA ÚTIL MÁXIMA 15.935 KG, DISTÂNCIA ENTRE EIXOS 4,80 M, POTÊNCIA 230 CV INCLUSIVE CAÇAMBA METÁLICA | E146: CHP | F146: 0,0198000 | G146: 262,43 | H146: 5.19
B147: COMPOSICAO | C147: 91387 | D147: CAMINHÃO BASCULANTE 10 M3, TRUCADO CABINE SIMPLES, PESO BRUTO TOTAL 23.000 KG, CARGA ÚTIL MÁXIMA 15.935 KG, DISTÂNCIA ENTRE EIXOS 4,80 M, POTÊNCIA 230 CV INCLUSIVE CAÇAMBA METÁLICA | E147: CHI | F147: 0,0138000 | G147: 57,00 | H147: 0.78
H148: 0
B149: PRODUÇÃO DA EQUIPE | E149: 1 | F149: CUSTO | H149: =SUM(H144:H148) -> 8.59
B150: TOTAL | H150: =H149/E149 -> 8.59
B151: BDI % | H151: =1+$M$1 -> 1.2069
B152: TOTAL DO SERVIÇO - R$ | H152: =H150*H151 -> 10.367271
A154: 10 | B154: CODEVASF | E154: COMPOSIÇÃO DE PREÇO UNITÁRIO | I154: =H163 -> 31.05 | J154: =H165 -> 37.474245
B155: OBRA: | C155: =$C$2 -> CONSTRUÇÃO DE PONTE SOBRE O RIO BARREIRO - SÃO JOÃO DO PACUÍ (COMUNIDADE BARREIRO) | G155: DATA: | H155: =$H$2 -> OUTUBRO/2022
B156: SERVIÇO: | C156: =VLOOKUP(A154,ORÇAMENTO!$A$11:$I$54,3) -> LASTRO DE CONCRETO MAGRO, APLICADO EM BLOCOS DE COROAMENTO OU SAPATAS, ESPESSURA DE 5 CM. | E156: SINAPI | F156: =VLOOKUP(A154,ORÇAMENTO!$A$11:$I$50,4) -> 96619 | G156: UNIDADE: | H156: =VLOOKUP(A154,ORÇAMENTO!$A$11:$I$50,5) -> M2 | I156: OK
B158: TIPO ITEM | C158: CODIGO ITEM | D158: DESCRIÇÃO ITEM | E158: UNIDADE ITEM | F158: COEFICIENTE | G158: PRECO UNITARIO | H158: CUSTO TOTAL
B159: COMPOSICAO | C159: 88309 | D159: PEDREIRO COM ENCARGOS COMPLEMENTARES | E159: H | F159: 0,3106000 | G159: 25,14 | H159: =ROUNDDOWN(F159*G159,2) -> 7.8
B160: COMPOSICAO | C160: 88316 | D160: SERVENTE COM ENCARGOS COMPLEMENTARES | E160: H | F160: 0,0847000 | G160: 18,02 | H160: 1.52
B161: COMPOSICAO | C161: 94968 | D161: CONCRETO MAGRO PARA LASTRO, TRAÇO 1:4,5:4,5 (EM MASSA SECA DE CIMENTO/ AREIA MÉDIA/ BRITA 1) - PREPARO MECÂNICO COM BETONEIRA | E161: M3 | F161: 0,0565000 | G161: 384,68 | H161: 21.73
B162: PRODUÇÃO DA EQUIPE | E162: 1 | F162: CUSTO | H162: =SUM(H159:H161) -> 31.05
B163: TOTAL | H163: =H162/E162 -> 31.05
B164: BDI % | H164: =1+$M$1 -> 1.2069
B165: TOTAL DO SERVIÇO - R$ | H165: =H163*H164 -> 37.474245
A167: 11 | B167: CODEVASF | E167: COMPOSIÇÃO DE PREÇO UNITÁRIO | I167: =H179 -> 17.02 | J167: =H181 -> 20.541438
B168: OBRA: | C168: =$C$2 -> CONSTRUÇÃO DE PONTE SOBRE O RIO BARREIRO - SÃO JOÃO DO PACUÍ (COMUNIDADE BARREIRO) | G168: DATA: | H168: =$H$2 -> OUTUBRO/2022
B169: SERVIÇO: | C169: =VLOOKUP(A167,ORÇAMENTO!$A$11:$I$50,3) -> ARMAÇÃO DE BLOCO, PILAR, VIGA OU SAPATA UTILIZANDO AÇO CA-50 DE 8 MM | E169: SINAPI | F169: =VLOOKUP(A167,ORÇAMENTO!$A$11:$I$50,4) -> 96545 | G169: UNIDADE: | H169: =VLOOKUP(A167,ORÇAMENTO!$A$11:$I$50,5) -> KG | I169: OK
B171: TIPO ITEM | C171: CODIGO ITEM | D171: DESCRIÇÃO ITEM | E171: UNIDADE ITEM | F171: COEFICIENTE | G171: PRECO UNITARIO | H171: CUSTO TOTAL
B172: INSUMO | C172: 39017 | D172: ESPACADOR / DISTANCIADOR CIRCULAR COM ENTRADA LATERAL, EM PLASTICO, PARA VERGALHAO *4,2 A 12,5* MM, COBRIMENTO 20 MM | E172: UN | F172: 0,7240000 | G172: 0,21 | H172: =ROUNDDOWN(F172*G172,2) -> 0.15
B173: INSUMO | C173: 43132 | D173: ARAME RECOZIDO 16 BWG, D = 1,65 MM (0,016 KG/M) OU 18 BWG, D = 1,25 MM (0,01 KG/M) | E173: KG | F173: 0,0250000 | G173: 26,20 | H173: 0.65
B174: COMPOSICAO | C174: 88238 | D174: AJUDANTE DE ARMADOR COM ENCARGOS COMPLEMENTARES | E174: H | F174: 0,0375000 | G174: 18,40 | H174: 0.69
B175: COMPOSICAO | C175: 88245 | D175: ARMADOR COM ENCARGOS COMPLEMENTARES | E175: H | F175: 0,1155000 | G175: 24,98 | H175: 2.88
B176: COMPOSICAO | C176: 92802 | D176: CORTE E DOBRA DE AÇO CA-50, DIÂMETRO DE 8,0 MM | E176: KG | F176: 1,0000000 | G176: 12,65 | H176: 12.65
H177: 0
B178: PRODUÇÃO DA EQUIPE | E178: 1 | F178: CUSTO | H178: =SUM(H172:H177) -> 17.02
B179: TOTAL | H179: =H178/E178 -> 17.02
B180: BDI % | H180: =1+$M$1 -> 1.2069
B181: TOTAL DO SERVIÇO - R$ | H181: =H179*H180 -> 20.541438
A183: 12 | B183: CODEVASF | E183: COMPOSIÇÃO DE PREÇO UNITÁRIO | I183: =H195 -> 12.88 | J183: =H197 -> 15.544872
B184: OBRA: | C184: =$C$2 -> CONSTRUÇÃO DE PONTE SOBRE O RIO BARREIRO - SÃO JOÃO DO PACUÍ (COMUNIDADE BARREIRO) | G184: DATA: | H184: =$H$2 -> OUTUBRO/2022
B185: SERVIÇO: | C185: =VLOOKUP(A183,ORÇAMENTO!$A$11:$I$50,3) -> ARMAÇÃO DE BLOCO, PILAR, VIGA OU SAPATA UTILIZANDO AÇO CA-50 DE 12,5 MM | E185: SINAPI | F185: =VLOOKUP(A183,ORÇAMENTO!$A$11:$I$50,4) -> 96547 | G185: UNIDADE: | H185: =VLOOKUP(A183,ORÇAMENTO!$A$11:$I$50,5) -> KG | I185: OK
B187: TIPO ITEM | C187: CODIGO ITEM | D187: DESCRIÇÃO ITEM | E187: UNIDADE ITEM | F187: COEFICIENTE | G187: PRECO UNITARIO | H187: CUSTO TOTAL
B188: INSUMO | C188: 39017 | D188: ESPACADOR / DISTANCIADOR CIRCULAR COM ENTRADA LATERAL, EM PLASTICO, PARA VERGALHAO *4,2 A 12,5* MM, COBRIMENTO 20 MM | E188: UN | F188: 0,3060000 | G188: 0,21 | H188: =ROUNDDOWN(F188*G188,2) -> 0.06
B189: INSUMO | C189: 43132 | D189: ARAME RECOZIDO 16 BWG, D = 1,65 MM (0,016 KG/M) OU 18 BWG, D = 1,25 MM (0,01 KG/M) | E189: KG | F189: 0,0250000 | G189: 26,20 | H189: 0.65
B190: COMPOSICAO | C190: 88238 | D190: AJUDANTE DE ARMADOR COM ENCARGOS COMPLEMENTARES | E190: H | F190: 0,0220000 | G190: 18,40 | H190: 0.4
B191: COMPOSICAO | C191: 88245 | D191: ARMADOR COM ENCARGOS COMPLEMENTARES | E191: H | F191: 0,0680000 | G191: 24,98 | H191: 1.69
B192: COMPOSICAO | C192: 92804 | D192: CORTE E DOBRA DE AÇO CA-50, DIÂMETRO DE 12,5 MM | E192: KG | F192: 1,0000000 | G192: 10,08 | H192: 10.08
H193: 0
B194: PRODUÇÃO DA EQUIPE | E194: 1 | F194: CUSTO | H194: =SUM(H188:H193) -> 12.88
B195: TOTAL | H195: =H194/E194 -> 12.88
B196: BDI % | H196: =1+$M$1 -> 1.2069
B197: TOTAL DO SERVIÇO - R$ | H197: =H195*H196 -> 15.544872
A198: =A183+1 -> 13 | B198: CODEVASF | E198: COMPOSIÇÃO DE PREÇO UNITÁRIO | I198: =H207 -> 2.17 | J198: =H209 -> 2.618973
B199: OBRA: | C199: =$C$2 -> CONSTRUÇÃO DE PONTE SOBRE O RIO BARREIRO - SÃO JOÃO DO PACUÍ (COMUNIDADE BARREIRO) | G199: DATA: | H199: =$H$2 -> OUTUBRO/2022
B200: SERVIÇO: | C200: =VLOOKUP(A198,ORÇAMENTO!$A$11:$I$50,3) -> TRANSPORTE COM CAMINHÃO CARROCERIA 9T, EM VIA URBANA PAVIMENTADA (MAT. DIVERSOS - AÇO, MADEIRA, CIMENTO) | E200: SINAPI | F200: =VLOOKUP(A198,ORÇAMENTO!$A$11:$I$50,4) -> 100947 | G200: UNIDADE: | H200: =VLOOKUP(A198,ORÇAMENTO!$A$11:$I$50,5) -> TXKM | I200: OK
B202: TIPO ITEM | C202: CODIGO ITEM | D202: DESCRIÇÃO ITEM | E202: UNIDADE ITEM | F202: COEFICIENTE | G202: PRECO UNITARIO | H202: CUSTO TOTAL
B203: COMPOSICAO | C203: 5824 | D203: CAMINHÃO TOCO, PBT 16.000 KG, CARGA ÚTIL MÁX. 10.685 KG, DIST. ENTRE EIXOS 4,8 M, POTÊNCIA 189 CV, INCLUSIVE CARROCERIA FIXA ABERTA DE MADEIRA P/ TRANSPORTE GERAL DE CARGA SECA, DIMEN. APROX. 2,5 X 7,00 X 0,50 M - CHP DIURNO. AF_06/2014 | E203: CHP | F203: 0,0093000 | G203: 213,60 | H203: =ROUNDDOWN(F203*G203,2) -> 1.98
B204: COMPOSICAO | C204: 5826 | D204: CAMINHÃO TOCO, PBT 16.000 KG, CARGA ÚTIL MÁX. 10.685 KG, DIST. ENTRE EIXOS 4,8 M, POTÊNCIA 189 CV, INCLUSIVE CARROCERIA FIXA ABERTA DE MADEIRA P/ TRANSPORTE GERAL DE CARGA SECA, DIMEN. APROX. 2,5 X 7,00 X 0,50 M - CHI DIURNO. AF_06/2014 | E204: CHI | F204: 0,0040000 | G204: 49,20 | H204: 0.19
H205: 0
B206: PRODUÇÃO DA EQUIPE | E206: 1 | F206: CUSTO | H206: =SUM(H203:H205) -> 2.17
B207: TOTAL | H207: =H206/E206 -> 2.17
B208: BDI % | H208: =1+$M$1 -> 1.2069
B209: TOTAL DO SERVIÇO - R$ | H209: =H207*H208 -> 2.618973
A210: =A198+1 -> 14 | B210: CODEVASF | E210: COMPOSIÇÃO DE PREÇO UNITÁRIO | I210: =H219 -> 2.73 | J210: =H221 -> 3.294837
B211: OBRA: | C211: =$C$2 -> CONSTRUÇÃO DE PONTE SOBRE O RIO BARREIRO - SÃO JOÃO DO PACUÍ (COMUNIDADE BARREIRO) | G211: DATA: | H211: =$H$2 -> OUTUBRO/2022
B212: SERVIÇO: | C212: =VLOOKUP(A210,ORÇAMENTO!$A$11:$I$50,3) -> TRANSPORTE COM CAMINHÃO CARROCERIA 9T, EM VIA URBANA EM LEITO NATURAL (MAT. DIVERSOS - AÇO, MADEIRA, CIMENTO) | E212: SINAPI | F212: =VLOOKUP(A210,ORÇAMENTO!$A$11:$I$50,4) -> 100945 | G212: UNIDADE: | H212: =VLOOKUP(A210,ORÇAMENTO!$A$11:$I$50,5) -> TXKM | I212: OK
B214: TIPO ITEM | C214: CODIGO ITEM | D214: DESCRIÇÃO ITEM | E214: UNIDADE ITEM | F214: COEFICIENTE | G214: PRECO UNITARIO | H214: CUSTO TOTAL
B215: COMPOSICAO | C215: 5824 | D215: CAMINHÃO TOCO, PBT 16.000 KG, CARGA ÚTIL MÁX. 10.685 KG, DIST. ENTRE EIXOS 4,8 M, POTÊNCIA 189 CV, INCLUSIVE CARROCERIA FIXA ABERTA DE MADEIRA P/ TRANSPORTE GERAL DE CARGA SECA, DIMEN. APROX. 2,5 X 7,00 X 0,50 M - CHP DIURNO. AF_06/2014 | E215: CHP | F215: 0,0117000 | G215: 213,60 | H215: =ROUNDDOWN(F215*G215,2) -> 2.49
B216: COMPOSICAO | C216: 5826 | D216: CAMINHÃO TOCO, PBT 16.000 KG, CARGA ÚTIL MÁX. 10.685 KG, DIST. ENTRE EIXOS 4,8 M, POTÊNCIA 189 CV, INCLUSIVE CARROCERIA FIXA ABERTA DE MADEIRA P/ TRANSPORTE GERAL DE CARGA SECA, DIMEN. APROX. 2,5 X 7,00 X 0,50 M - CHI DIURNO. AF_06/2014 | E216: CHI | F216: 0,0050000 | G216: 49,20 | H216: 0.24
H217: 0
B218: PRODUÇÃO DA EQUIPE | E218: 1 | F218: CUSTO | H218: =SUM(H215:H217) -> 2.73
B219: TOTAL | H219: =H218/E218 -> 2.73
B220: BDI % | H220: =1+$M$1 -> 1.2069
B221: TOTAL DO SERVIÇO - R$ | H221: =H219*H220 -> 3.294837
A222: =A210+1 -> 15 | B222: CODEVASF | E222: COMPOSIÇÃO DE PREÇO UNITÁRIO | I222: =H231 -> 0.75 | J222: =H233 -> 0.905175
B223: OBRA: | C223: =$C$2 -> CONSTRUÇÃO DE PONTE SOBRE O RIO BARREIRO - SÃO JOÃO DO PACUÍ (COMUNIDADE BARREIRO) | G223: DATA: | H223: =$H$2 -> OUTUBRO/2022
B224: SERVIÇO: | C224: =VLOOKUP(A222,ORÇAMENTO!$A$11:$I$50,3) -> TRANSPORTE COM CAMINHÃO BASCULANTE, EM VIA URBANA PAVIMENTADA (MAT. DIVERSOS - AREIA, BRITA, SOLO, ENTULHO) | E224: SINAPI | F224: =VLOOKUP(A222,ORÇAMENTO!$A$11:$I$50,4) -> 95427 | G224: UNIDADE: | H224: =VLOOKUP(A222,ORÇAMENTO!$A$11:$I$50,5) -> M3XKM | I224: OK
B226: TIPO ITEM | C226: CODIGO ITEM | D226: DESCRIÇÃO ITEM | E226: UNIDADE ITEM | F226: COEFICIENTE | G226: PRECO UNITARIO | H226: CUSTO TOTAL
B227: COMPOSICAO | C227: 89883 | D227: CAMINHÃO BASCULANTE 18 M3, COM CAVALO MECÂNICO DE CAPACIDADE MÁXIMA DE TRAÇÃO COMBINADO DE 45000 KG, POTÊNCIA 330 CV, INCLUSIVE SEMIREBOQUE COM CAÇAMBA METÁLICA - CHP DIURNO. AF_12/2014 | E227: CHP | F227: 0,0019000 | G227: 368,62 | H227: =ROUNDDOWN(F227*G227,2) -> 0.7
B228: COMPOSICAO | C228: 89884 | D228: CAMINHÃO BASCULANTE 18 M3, COM CAVALO MECÂNICO DE CAPACIDADE MÁXIMA DE TRAÇÃO COMBINADO DE 45000 KG, POTÊNCIA 330 CV, INCLUSIVE SEMIREBOQUE COM CAÇAMBA METÁLICA - CHI DIURNO. AF_12/2014 | E228: CHI | F228: 0,0008000 | G228: 73,22 | H228: 0.05
... 267 more rows

Sheet BDI SERV
B1: DETALHAMENTO DO BDI - SERVIÇOS
B4: Item | C4: Descrição dos Serviços | D4: % | E4: %
D5: PV | E5: CD
B7: 1 | C7: ADMINISTRAÇÃO CENTRAL | E7: 4
B8: 1.1 | C8: ESCRITÓRIO CENTRAL
B9: 1.2 | C9: VIAGENS
B10: 1.3 | C10: OUTROS
B12: 2 | C12: IMPOSTOS E TAXAS | D12: =SUM(D13:D16) -> 5.65 | E12: =SUM(E13:E16) -> 7.06
B13: 2.1 | C13: ISS (*) | D13: 2 | E13: =ROUND(D13*1.2515,2) -> 2.5
B14: 2.2 | C14: PIS | D14: 0.65 | E14: 0.81
B15: 2.3 | C15: Cofins | D15: 3 | E15: 3.75
B16: 2.4 | C16: CONTRIBUIÇÃO PREVIDENCIÁRIA SOBRE A RENDA BRUTA | D16: 0 | E16: 0
B18: 3 | C18: TAXA DE RISCO | E18: =SUM(E19:E22) -> 0.96
B19: 3.1 | C19: SEGURO | E19: 0.2
B20: 3.2 | C20: RISCO | E20: 0.56
B21: 3.3 | C21: GARANTIA | E21: 0.2
B23: 4 | C23: DESPESAS FINANCEIRAS | E23: 1.11
B25: 5 | C25: LUCRO | E25: 7.3
C27: BDI - CALCULADO | E27: =ROUND((((1+(E7+E18)/100)*(1+E23/100)*(1+E25/100)/(1-D12/100)-1)*100),2) -> 20.69
A29: BDI = ((1+((AC+S+R+G)/100))x(1+DF/100)x(1+L/100)/(1-I/100)-1)*100
B31: BDI (CALCULADO): | D31: =ROUND((((1+((E7+E18)/100))*(1+E23/100)*(1+E25/100))/(1-D12/100)-1)*100,2) -> 20.69 | E31: %
A33: (*) Conforme Lei Municipal nº 033/1997 que insituiu o Código Tributário do município
A37: BDI EM CONFORMIDADE COM OS ACÓRDÃOS Nº 2369/2011 e ACÓRDÃO Nº 2.622/2013 - TCU - PLENÁRIO

Sheet CRONOGRAMA
B1: CRONOGRAMA FÍSICO-FINANCEIRO
B2: OBRA: | C2: =ORÇAMENTO!C5 -> CONSTRUÇÃO DE PONTE SOBRE O RIO BARREIRO - SÃO JOÃO DO PACUÍ (COMUNIDADE BARREIRO) | F2: VALOR: | G2: =ORÇAMENTO!I55 -> 413134.13
F3: PRAZO: | G3: 120 DIAS
B5: ITEM | C5: ETAPAS/DESCRIÇAO | D5: FISICO/ FINANCEIRO | E5: TOTAL ETAPAS | F5: MÊS 1 | G5: MÊS 2 | H5: MÊS 3 | I5: MÊS 4 | J5: MÊS 5 | K5: MÊS 6 | L5: TOTAL
A6: A | B6: =VLOOKUP(A6,ORÇAMENTO!$A$10:$I$55,2) -> 1 | C6: =VLOOKUP(A6,ORÇAMENTO!$A$10:$I$55,3) -> SERVIÇOS PRELIMINARES | D6: FISICO | E6: =ROUND(E7/$G$2,4) -> 0.1262 | F6: 0.4 | G6: 0.2 | H6: 0.2 | I6: 0.2 | L6: =SUM(F6:K6) -> 1
D7: FINANCEIRO | E7: =ORÇAMENTO!I10 -> 52126.68 | F7: =ROUND($E$7*F6,2) -> 20850.67 | G7: 10425.34 | H7: =ROUND($E$7*H6,2) -> 10425.34 | I7: 10425.34 | J7: 0 | K7: 0 | L7: 52126.69
A8: B | B8: =VLOOKUP(A8,ORÇAMENTO!$A$10:$I$55,2) -> 2 | C8: =VLOOKUP(A8,ORÇAMENTO!$A$10:$I$55,3) -> INFRAESTRUTURA E MESOESTRUTURA | D8: FISICO | E8: =ROUND(E9/$G$2,4) -> 0.5392 | F8: 0.3 | G8: 0.5 | H8: 0.2 | L8: 1
D9: FINANCEIRO | E9: =ORÇAMENTO!I17 -> 222770.66 | F9: =ROUND($E$9*F8,2) -> 66831.2 | G9: 111385.33 | H9: =ROUND($E$9*H8,2) -> 44554.13 | I9: 0 | J9: 0 | K9: 0 | L9: 222770.66
A10: D | B10: =VLOOKUP(A10,ORÇAMENTO!$A$10:$I$55,2) -> 3 | C10: =VLOOKUP(A10,ORÇAMENTO!$A$10:$I$55,3) -> SUPERESTRUTURA E LAJES DE APROXIMAÇÃO | D10: FISICO | E10: =ROUND(E11/$G$2,4) -> 0.2844 | H10: 0.3 | I10: 0.7 | L10: =SUM(F10:K10) -> 1
D11: FINANCEIRO | E11: =ORÇAMENTO!I31 -> 117514.85 | F11: =ROUND($E$11*F10,2) -> 0 | G11: =ROUND($E$11*G10,2) -> 0 | H11: 35254.46 | I11: 82260.4 | J11: 0 | K11: 0 | L11: 117514.86
A12: E | B12: =VLOOKUP(A12,ORÇAMENTO!$A$10:$I$55,2) -> 4 | C12: =VLOOKUP(A12,ORÇAMENTO!$A$10:$I$55,3) -> SERVIÇOS DIVERSOS - ENCABEÇAMENTO, GUARDA-CORPO E LIMPEZA FINAL | D12: FISICO | E12: =ROUND(E13/$G$2,4) -> 0.0502 | I12: 1 | L12: 1
D13: FINANCEIRO | E13: =ORÇAMENTO!I48 -> 20721.94 | F13: =ROUND($E$13*F12,2) -> 0 | G13: 0 | H13: =ROUND($E$13*H12,2) -> 0 | I13: 20721.94 | J13: 0 | K13: 0 | L13: 20721.94
B14: TOTAL | D14: FISICO | E14: =SUM(F14:K14) -> 1.000000048 | F14: =F15/E15 -> 0.2122358421 | G14: =G15/E15 -> 0.2948453327 | H14: =H15/E15 -> 0.218413158 | I14: =I15/E15 -> 0.2745057156 | J14: =J15/E15 -> 0 | K14: =K15/E15 -> 0 | L14: =SUM(F14:K14) -> 1.000000048
D15: FINANCEIRO | E15: =E9+E7+E13+E11 -> 413134.13 | F15: =F9+F7+F13+F11 -> 87681.87 | G15: 121810.67 | H15: 90233.93 | I15: 113407.68 | J15: 0 | K15: 0 | L15: =SUM(F15:K15) -> 413134.15
B16: OBSERVAÇÕES:
